bitfinex/quotes_BTCUSD_20230113
["timestamp","ask_amount","ask_price","bid_price","bid_amount"]
[1673573095931,0.02801049,18803.0,18802.0,1.93901733]
[1673573096915,0.02801049,18803.0,18802.0,2.50558168]
[1673573097422,1e-08,18803.0,18802.0,2.50558168]
[1673573097667,1e-08,18803.0,18802.0,1.78095974]
[1673573097915,0.97866302,18806.0,18802.0,1.78095974]
[1673573098165,0.1591414,18805.0,18803.0,0.15908499]
[1673573098419,0.1,18805.0,18803.0,0.15908499]
[1673573098666,0.2591414,18805.0,18804.0,0.33038]
[1673573098915,0.1,18805.0,18804.0,0.33038]
[1673573099158,0.2591414,18805.0,18804.0,0.33038]
[1673573099400,0.1591414,18805.0,18804.0,0.33038]
[1673573099646,0.49785614,18806.0,18804.0,0.33038]
[1673573099888,0.49785614,18806.0,18803.0,0.88063077]
[1673573100137,0.003,18805.0,18804.0,0.77283445]
[1673573100828,0.49785614,18806.0,18804.0,0.74683445]
[1673573101078,0.50785614,18806.0,18804.0,0.41645445]
[1673573101604,0.01,18805.0,18804.0,0.49645445]
[1673573101853,0.1575674,18805.0,18804.0,0.41645445]
[1673573103086,0.1575674,18805.0,18804.0,0.49645445]
[1673573103340,0.1575674,18805.0,18804.0,0.41645445]
[1673573103626,0.01,18805.0,18804.0,0.49645445]
[1673573104117,0.01,18805.0,18804.0,0.82683445]
[1673573104612,0.01,18805.0,18804.0,0.49645445]
[1673573104857,0.01,18805.0,18804.0,0.82683445]
[1673573105138,0.01,18805.0,18804.0,0.98591944]
[1673573105871,0.01,18805.0,18804.0,0.82683445]
[1673573106131,0.01,18805.0,18804.0,0.98591944]
[1673573106378,0.01,18805.0,18804.0,0.49645445]
[1673573111084,0.01,18805.0,18804.0,0.82683445]
[1673573113098,0.01,18805.0,18804.0,0.49645445]
[1673573114105,0.01,18805.0,18804.0,0.82683445]
[1673573118486,0.01,18805.0,18804.0,0.82642612]
[1673573119422,0.16942572,18805.0,18804.0,0.82642612]
[1673573119788,0.16942572,18805.0,18804.0,0.49604612]
[1673573120916,0.16942572,18805.0,18804.0,0.82642612]
[1673573122362,0.01,18805.0,18804.0,0.82642612]
[1673573122744,0.16942572,18805.0,18804.0,0.82642612]
[1673573123392,0.01,18805.0,18804.0,0.82642612]
[1673573123633,0.01,18805.0,18804.0,1.08551111]
[1673573124145,0.01,18805.0,18804.0,1.02126993]
[1673573124416,0.01,18805.0,18804.0,2.24116828]
[1673573124646,0.01,18805.0,18804.0,1.84448688]
[1673573124891,0.01,18805.0,18804.0,2.24244358]
[1673573125136,0.00977076,18809.0,18805.0,0.11222212]
[1673573125429,0.00977076,18809.0,18808.0,0.6807685]
[1673573125637,0.00977076,18809.0,18808.0,2.11357325]
[1673573125908,0.00977076,18809.0,18808.0,0.61338]
[1673573126154,0.51033253,18808.0,18805.0,0.17105609]
[1673573126403,0.1415,18808.0,18806.0,0.58509647]
[1673573126899,0.2415,18808.0,18806.0,0.58509647]
[1673573127144,0.40092572,18808.0,18806.0,0.58509647]
[1673573127393,0.63964046,18808.0,18805.0,0.01222212]
[1673573127635,0.1415,18806.0,18805.0,0.49543415]
[1673573128612,0.98114046,18806.0,18805.0,0.01222212]
[1673573128869,1.28002046,18806.0,18805.0,0.01222212]
[1673573129110,1.95346348,18806.0,18805.0,0.01222212]
[1673573129356,2.50123202,18806.0,18805.0,0.15222212]
[1673573129606,2.57762659,18806.0,18805.0,0.01222212]
[1673573129860,2.57793221,18806.0,18805.0,0.01222212]
[1673573130362,2.82499652,18806.0,18805.0,0.01222212]
[1673573130613,2.2607176,18806.0,18805.0,0.01222212]
[1673573130858,1.98375553,18806.0,18805.0,0.02122212]
[1673573131849,2.97315553,18806.0,18805.0,0.02122212]
[1673573134837,3.29306717,18806.0,18805.0,0.02122212]
[1673573135084,2.95394795,18806.0,18805.0,0.02122212]
[1673573135324,2.44374491,18806.0,18805.0,0.02122212]
[1673573135819,2.12545553,18806.0,18805.0,0.02122212]
[1673573136075,3.79815735,18806.0,18802.0,0.00626124]
[1673573136329,0.97900757,18803.0,18802.0,0.00626124]
[1673573136566,2.10412027,18803.0,18802.0,0.00626124]
[1673573137140,2.10412027,18803.0,18802.0,0.05026124]
[1673573137141,2.72078062,18803.0,18802.0,0.05026124]
[1673573137390,2.42023258,18803.0,18802.0,0.05026124]
[1673573137889,2.18150824,18803.0,18802.0,0.05026124]
[1673573138137,2.18150824,18803.0,18802.0,0.00626124]
[1673573138863,2.19950824,18803.0,18802.0,0.01626124]
[1673573141322,2.4892005,18803.0,18802.0,0.01626124]
[1673573142327,2.19950824,18803.0,18802.0,0.01626124]
[1673573142819,1.92157904,18803.0,18802.0,0.01626124]
[1673573143076,2.58513166,18803.0,18802.0,0.01626124]
[1673573143326,2.34640732,18803.0,18802.0,0.01626124]
[1673573144824,2.06580732,18803.0,18802.0,0.01626124]
[1673573146059,2.32808949,18803.0,18802.0,0.01626124]
[1673573146314,1.90326121,18803.0,18802.0,0.01626124]
[1673573146837,1.85333687,18803.0,18802.0,0.01626124]
[1673573147084,2.53927934,18803.0,18802.0,0.01626124]
[1673573147332,2.77800368,18803.0,18802.0,0.01626124]
[1673573147572,2.53927934,18803.0,18802.0,0.01626124]
[1673573148089,1.85333687,18803.0,18802.0,0.01626124]
[1673573148348,2.10056121,18803.0,18800.0,0.10748821]
[1673573148590,1.96667773,18802.0,18799.0,0.00864203]
[1673573148834,0.1,18800.0,18799.0,0.00864203]
[1673573149085,1.1131127,18800.0,18799.0,0.00864203]
[1673573149583,1.4131127,18800.0,18799.0,0.00864203]
[1673573149838,1.4132127,18800.0,18799.0,0.00864203]
[1673573150094,1.66565564,18800.0,18799.0,0.00864203]
[1673573150586,1.5067127,18800.0,18799.0,0.00864203]
[1673573150871,1.5067127,18800.0,18799.0,0.04764203]
[1673573150872,1.66565564,18800.0,18799.0,0.04764203]
[1673573151362,2.06230536,18800.0,18799.0,0.00864203]
[1673573151571,2.09030536,18800.0,18799.0,0.00864203]
[1673573151836,1.5347127,18800.0,18799.0,0.00864203]
[1673573152084,1.5067127,18800.0,18799.0,0.00864203]
[1673573152316,1.5337127,18800.0,18799.0,0.01864203]
[1673573152552,2.05748669,18800.0,18799.0,0.01864203]
[1673573153793,1.76620566,18800.0,18799.0,0.01864203]
[1673573155033,1.90730566,18800.0,18799.0,0.01864203]
[1673573155299,1.2521127,18800.0,18799.0,0.01864203]
[1673573156878,1.6755127,18800.0,18799.0,0.01864203]
[1673573157125,2.2144202,18800.0,18798.0,0.00940963]
[1673573157374,1.1094327,18799.0,18798.0,0.00940963]
[1673573157619,1.5083127,18799.0,18798.0,0.00940963]
[1673573158380,1.6869127,18799.0,18798.0,0.01640963]
[1673573158623,1.2621127,18799.0,18798.0,0.01640963]
[1673573159368,1.95265099,18799.0,18798.0,0.01640963]
[1673573159618,1.2621127,18799.0,18798.0,0.01640963]
[1673573159868,1.85694359,18799.0,18798.0,0.01640963]
[1673573160109,2.10307015,18799.0,18798.0,0.01640963]
[1673573160359,2.04523997,18799.0,18798.0,0.01640963]
[1673573160840,1.39983774,18799.0,18798.0,0.01640963]
[1673573161572,1.95971324,18799.0,18798.0,0.01640963]
[1673573161815,0.57584662,18798.0,18797.0,0.00768636]
[1673573162088,1.29934662,18798.0,18797.0,0.00768636]
[1673573162336,2.12445932,18798.0,18797.0,0.00768636]
[1673573162574,2.05826842,18798.0,18797.0,0.00768636]
[1673573163055,1.81521205,18798.0,18797.0,0.00868636]
[1673573163324,1.91521205,18798.0,18797.0,0.00868636]
[1673573163567,1.87821205,18798.0,18797.0,0.00768636]
[1673573163808,2.45550348,18798.0,18797.0,0.00768636]
[1673573164066,2.46626313,18798.0,18797.0,0.01868636]
[1673573164306,1.92121205,18798.0,18797.0,0.01868636]
[1673573164559,1.6916127,18798.0,18797.0,0.01868636]
[1673573166040,1.85055564,18798.0,18797.0,0.01868636]
[1673573166290,2.10760973,18798.0,18796.0,0.00864203]
[1673573166548,0.1,18796.0,18794.0,0.00783125]
[1673573166793,0.8094327,18795.0,18794.0,0.00783125]
[1673573167086,1.6499127,18795.0,18794.0,0.00783125]
[1673573167537,1.808787,18795.0,18794.0,0.03283125]
[1673573167781,1.6499127,18795.0,18794.0,0.03283125]
[1673573168034,2.36278238,18795.0,18794.0,0.00783125]
[1673573168282,1.96549367,18795.0,18794.0,0.03283125]
[1673573168528,2.12436797,18795.0,18794.0,2.5e-07]
[1673573168767,2.12436797,18795.0,18793.0,0.00842306]
[1673573168768,1.82389367,18795.0,18793.0,0.00842306]
[1673573169037,1.74465456,18794.0,18793.0,0.00842306]
[1673573169285,1.74465456,18794.0,18793.0,0.80604655]
[1673573169286,0.29888,18794.0,18793.0,0.80604655]
[1673573169538,0.61735609,18796.0,18793.0,0.73634161]
[1673573169539,0.51735609,18796.0,18793.0,0.73634161]
[1673573169794,0.059,18795.0,18793.0,0.95164655]
[1673573170042,0.51735609,18796.0,18793.0,0.73634161]
[1673573170304,0.059,18794.0,18793.0,0.60074161]
[1673573170551,0.059,18794.0,18793.0,0.59574161]
[1673573170790,0.059,18794.0,18793.0,0.60874161]
[1673573171767,0.96305112,18795.0,18793.0,0.59574161]
[1673573172006,0.96305112,18795.0,18793.0,0.60874161]
[1673573172262,0.66305112,18795.0,18793.0,0.60874161]
[1673573172744,0.66305112,18795.0,18793.0,0.59574161]
[1673573172978,0.66905112,18795.0,18793.0,0.68174161]
[1673573173220,0.66305112,18795.0,18793.0,0.59574161]
[1673573174726,0.66905112,18795.0,18793.0,0.68174161]
[1673573176426,0.73595623,18795.0,18793.0,0.09442306]
[1673573176668,0.83323457,18794.0,18793.0,0.09442306]
[1673573176908,1.35946727,18794.0,18793.0,0.09442306]
[1673573177149,1.65946727,18794.0,18793.0,0.09442306]
[1673573177642,1.84859194,18794.0,18793.0,0.09442306]
[1673573178365,0.1,18793.0,18792.0,0.00850416]
[1673573178672,1.0678327,18793.0,18792.0,0.00850416]
[1673573178921,1.3667127,18793.0,18792.0,0.00850416]
[1673573179157,2.1549719,18793.0,18792.0,0.00850416]
[1673573179643,2.1549719,18793.0,18792.0,0.11650416]
[1673573179644,2.1609719,18793.0,18792.0,0.11650416]
[1673573181626,1.60967401,18793.0,18792.0,0.11650416]
[1673573181863,1.90944831,18793.0,18791.0,0.01199405]
[1673573182112,1.52019438,18792.0,18789.0,0.01164055]
[1673573182380,0.1,18790.0,18789.0,0.01164055]
[1673573182622,0.9251127,18790.0,18789.0,0.01164055]
[1673573182862,1.2251127,18790.0,18789.0,0.01164055]
[1673573183155,1.2251127,18790.0,18789.0,0.01264055]
[1673573183395,1.2251127,18790.0,18789.0,0.01164055]
[1673573183653,1.2411127,18790.0,18789.0,0.01264055]
[1673573184371,1.94152334,18790.0,18789.0,0.01264055]
[1673573185344,1.2411127,18790.0,18788.0,0.01230783]
[1673573185589,1.46602008,18789.0,18788.0,0.01230783]
[1673573185829,1.86490008,18789.0,18788.0,0.01230783]
[1673573186595,1.87990008,18789.0,18788.0,8.3e-07]
[1673573187071,1.57990008,18789.0,18788.0,8.3e-07]
[1673573187372,0.31388,18789.0,18788.0,8.3e-07]
[1673573187594,0.015,18789.0,18788.0,8.3e-07]
[1673573188566,0.015,18789.0,18788.0,0.44118788]
[1673573188815,0.015,18789.0,18788.0,0.72408788]
[1673573189058,1e-08,18789.0,18788.0,1.05446788]
[1673573189790,1e-08,18789.0,18788.0,0.61328083]
[1673573190038,1e-08,18789.0,18788.0,0.28290083]
[1673573190285,1e-08,18789.0,18788.0,0.61328083]
[1673573192226,0.03166539,18789.0,18788.0,0.61328083]
[1673573192963,0.03166539,18789.0,18788.0,0.71328083]
[1673573193779,0.03166539,18789.0,18788.0,0.61328083]
[1673573195261,0.03166539,18789.0,18788.0,0.28290083]
[1673573196312,0.13166539,18789.0,18788.0,0.28290083]
[1673573196549,0.67806106,18789.0,18788.0,8.3e-07]
[1673573196799,1.27694106,18789.0,18788.0,8.3e-07]
[1673573198065,1.41804106,18789.0,18788.0,8.3e-07]
[1673573201049,2.11014787,18789.0,18788.0,8.3e-07]
[1673573201786,1.94427376,18789.0,18788.0,8.3e-07]
[1673573203983,1.64427376,18789.0,18788.0,8.3e-07]
[1673573204238,1.80317376,18789.0,18788.0,8.3e-07]
[1673573204732,1.50317376,18789.0,18788.0,8.3e-07]
[1673573205943,0.95677809,18789.0,18788.0,8.3e-07]
[1673573206227,0.85677809,18789.0,18788.0,8.3e-07]
[1673573206728,0.33054539,18789.0,18788.0,8.3e-07]
[1673573206978,0.03166539,18789.0,18788.0,0.61861215]
[1673573208489,0.03166539,18789.0,18788.0,0.94899215]
[1673573208780,0.03166539,18789.0,18788.0,1.04899215]
[1673573208987,0.03166539,18789.0,18788.0,0.94899215]
[1673573209235,0.03166539,18789.0,18788.0,0.61861215]
[1673573209485,0.03166539,18789.0,18788.0,8.3e-07]
[1673573209739,0.33054539,18789.0,18788.0,8.3e-07]
[1673573209994,0.87433097,18789.0,18788.0,8.3e-07]
[1673573210486,0.03166539,18789.0,18788.0,8.3e-07]
[1673573211749,0.33054539,18789.0,18788.0,8.3e-07]
[1673573213022,0.4302489,18789.0,18788.0,8.3e-07]
[1673573213260,0.03166539,18789.0,18788.0,8.3e-07]
[1673573216019,6.742e-05,18788.0,18787.0,0.01391328]
[1673573216314,1.02327936,18788.0,18787.0,0.01391328]
[1673573216523,1.56169377,18788.0,18787.0,0.01391328]
[1673573217016,1.66169377,18788.0,18787.0,0.01391328]
[1673573217547,1.66169377,18788.0,18787.0,0.02691328]
[1673573217548,1.67569377,18788.0,18787.0,0.02691328]
[1673573217779,1.51627587,18788.0,18787.0,0.02691328]
[1673573218017,1.83415849,18788.0,18787.0,0.02691328]
[1673573218508,1.51627587,18788.0,18787.0,0.02691328]
[1673573218755,1.83415849,18788.0,18787.0,0.02691328]
[1673573219252,1.26924445,18788.0,18787.0,0.02691328]
[1673573219502,1.65506123,18788.0,18787.0,0.02691328]
[1673573220004,2.17982161,18788.0,18787.0,0.02691328]
[1673573220247,2.17980502,18788.0,18787.0,0.02691328]
[1673573220494,1.9406834,18788.0,18787.0,0.02691328]
[1673573220744,2.1798068,18788.0,18787.0,0.02691328]
[1673573220988,1.95343816,18788.0,18787.0,0.02691328]
[1673573222266,1.86233012,18788.0,18787.0,0.02691328]
[1673573223505,1.00495456,18788.0,18787.0,0.02691328]
[1673573223759,0.76583116,18788.0,18787.0,0.02191328]
[1673573226048,6.742e-05,18788.0,18787.0,0.66070075]
[1673573226308,0.03606742,18788.0,18787.0,1.09308075]
[1673573227046,6.742e-05,18788.0,18787.0,1.09108075]
[1673573227300,0.01506742,18788.0,18787.0,1.10208075]
[1673573228824,0.01506742,18788.0,18787.0,0.93456075]
[1673573229087,0.01506742,18788.0,18787.0,0.35029328]
[1673573229320,0.01506742,18788.0,18787.0,0.01991328]
[1673573229321,0.82956021,18788.0,18787.0,0.01991328]
[1673573229570,0.52956021,18788.0,18787.0,0.01991328]
[1673573229824,0.68894727,18788.0,18787.0,0.01991328]
[1673573232377,0.8260349,18788.0,18787.0,0.01991328]
[1673573232652,2.45795855,18788.0,18787.0,0.01991328]
[1673573232875,1.97255553,18788.0,18787.0,0.01991328]
[1673573233121,2.21167342,18788.0,18787.0,0.01991328]
[1673573233867,1.8937908,18788.0,18787.0,0.01991328]
[1673573234112,2.21167342,18788.0,18787.0,0.01991328]
[1673573236842,2.30587342,18788.0,18787.0,0.01991328]
[1673573238624,1.84741066,18788.0,18787.0,0.01991328]
[1673573238964,2.14741066,18788.0,18787.0,0.01991328]
[1673573239431,1.9879908,18788.0,18787.0,0.01991328]
[1673573239679,2.85173531,18788.0,18787.0,0.01991328]
[1673573239930,2.01936497,18788.0,18787.0,0.01991328]
[1673573240176,2.43819098,18788.0,18787.0,0.01991328]
[1673573240435,2.62152976,18788.0,18787.0,0.01991328]
[1673573240684,2.94034513,18788.0,18787.0,0.01991328]
[1673573241667,2.43818034,18788.0,18787.0,0.01991328]
[1673573241915,2.98665343,18788.0,18787.0,0.01991328]
[1673573244141,2.89901325,18788.0,18787.0,0.01991328]
[1673573244390,2.44072271,18788.0,18787.0,0.01991328]
[1673573244621,2.12190734,18788.0,18787.0,0.01991328]
[1673573244902,2.44072271,18788.0,18787.0,0.01991328]
[1673573245393,2.13782681,18788.0,18787.0,0.01991328]
[1673573246118,2.13782681,18788.0,18787.0,0.01985047]
[1673573246351,2.81993866,18788.0,18787.0,0.01985047]
[1673573246606,2.81992663,18788.0,18787.0,0.01985047]
[1673573246853,2.81992642,18788.0,18787.0,0.01985047]
[1673573247347,2.13773605,18788.0,18787.0,0.01985047]
[1673573248083,2.6704681,18788.0,18787.0,0.01985047]
[1673573248324,2.67051067,18788.0,18787.0,0.01985047]
[1673573248569,1.72481144,18788.0,18787.0,0.01985047]
[1673573248810,2.27471068,18788.0,18787.0,0.01985047]
[1673573249062,2.59347793,18788.0,18787.0,0.01985047]
[1673573249316,2.27471068,18788.0,18787.0,0.01985047]
[1673573249822,2.29346272,18788.0,18787.0,0.01985047]
[1673573250088,0.01506742,18788.0,18787.0,0.89392879]
[1673573250386,0.01506742,18788.0,18787.0,1.01400385]
[1673573250599,0.01506742,18788.0,18787.0,0.35023047]
[1673573250847,0.01506742,18788.0,18787.0,0.01985047]
[1673573251346,0.01506742,18788.0,18787.0,0.35023047]
[1673573252078,0.9333785,18788.0,18787.0,0.01985047]
[1673573252314,1.2333785,18788.0,18787.0,0.01985047]
[1673573252808,0.9333785,18788.0,18787.0,0.01985047]
[1673573253068,1.2333785,18788.0,18787.0,0.01985047]
[1673573253565,0.9333785,18788.0,18787.0,0.01985047]
[1673573253820,1.07398982,18788.0,18787.0,0.01985047]
[1673573254071,1.39274186,18788.0,18787.0,0.01985047]
[1673573254315,0.93345484,18788.0,18787.0,0.01985047]
[1673573255537,1.23345484,18788.0,18787.0,0.01985047]
[1673573256269,0.93345484,18788.0,18787.0,0.01985047]
[1673573257038,0.17453244,18788.0,18787.0,0.41770103]
[1673573257515,0.01506742,18788.0,18787.0,0.41770103]
[1673573258018,0.01506742,18788.0,18787.0,0.74808103]
[1673573258291,0.41396742,18788.0,18787.0,0.74808103]
[1673573258540,0.41396742,18788.0,18787.0,0.84808103]
[1673573259266,0.91396742,18788.0,18787.0,0.84808103]
[1673573261502,0.91396742,18788.0,18787.0,0.74808103]
[1673573263705,0.91396742,18788.0,18787.0,0.41770103]
[1673573263942,0.91396742,18788.0,18787.0,0.01985047]
[1673573264201,1.66981794,18788.0,18787.0,0.01985047]
[1673573264430,1.51035292,18788.0,18787.0,0.01985047]
[1673573264925,1.66981794,18788.0,18787.0,0.01985047]
[1673573267111,1.66975052,18788.0,18787.0,0.01985047]
[1673573270274,1.5102855,18788.0,18787.0,0.01985047]
[1673573271047,0.9139,18788.0,18787.0,0.95785892]
[1673573271816,0.9139,18788.0,18787.0,0.62747892]
[1673573272063,0.9139,18788.0,18787.0,0.95785892]
[1673573276063,0.9139,18788.0,18787.0,0.62747892]
[1673573277360,0.9139,18788.0,18787.0,0.95785892]
[1673573278391,0.9139,18788.0,18787.0,0.01985047]
[1673573278673,1.60814437,18788.0,18787.0,0.01985047]
[1673573281180,1.76760939,18788.0,18787.0,0.01985047]
[1673573281934,2.30667593,18788.0,18787.0,0.01985047]
[1673573282169,2.00667593,18788.0,18787.0,0.01985047]
[1673573282924,1.76760939,18788.0,18787.0,0.01985047]
[1673573283902,2.00667593,18788.0,18787.0,0.01985047]
[1673573284140,1.76760939,18788.0,18787.0,0.01985047]
[1673573284384,2.00667593,18788.0,18787.0,0.01985047]
[1673573284649,1.76760939,18788.0,18787.0,0.01985047]
[1673573286109,1.07336502,18788.0,18787.0,0.01985047]
[1673573286367,0.9139,18788.0,18787.0,1.13354068]
[1673573286621,0.9139,18788.0,18787.0,1.27616971]
[1673573287116,0.9139,18788.0,18787.0,0.77160994]
[1673573287385,0.07541551,18788.0,18787.0,1.4358293]
[1673573287630,0.07541551,18788.0,18787.0,1.86401045]
[1673573287907,0.07541551,18788.0,18787.0,1.95771045]
[1673573288148,0.07541551,18788.0,18787.0,1.62846855]
[1673573288403,0.07541551,18788.0,18787.0,1.94671045]
[1673573288651,0.07941551,18788.0,18787.0,1.94671045]
[1673573288896,0.07541551,18788.0,18787.0,1.62846855]
[1673573289159,0.07941551,18788.0,18787.0,1.62846855]
[1673573289405,0.07941551,18788.0,18787.0,1.78777572]
[1673573290166,0.07941551,18788.0,18787.0,1.92377572]
[1673573290167,0.08341551,18788.0,18787.0,1.92377572]
[1673573290931,0.08341551,18788.0,18787.0,1.92379497]
[1673573291180,0.08341551,18788.0,18787.0,2.08271045]
[1673573291675,0.08341551,18788.0,18787.0,1.92372624]
[1673573293912,0.08341551,18788.0,18787.0,1.22941509]
[1673573295862,0.08341551,18788.0,18787.0,0.99073366]
[1673573296112,0.08341551,18788.0,18787.0,1.85569497]
[1673573296619,0.03166538,18789.0,18788.0,0.07495337]
[1673573296875,0.03166538,18789.0,18788.0,1.87187037]
[1673573297140,0.03166538,18789.0,18788.0,2.13799037]
[1673573297389,0.03166538,18789.0,18788.0,1.68852944]
[1673573297641,0.03166538,18789.0,18788.0,1.52938885]
[1673573298151,0.03459361,18789.0,18788.0,0.8034178]
[1673573298651,0.03159361,18789.0,18788.0,0.8534178]
[1673573298906,0.03159361,18789.0,18788.0,1.09210897]
[1673573299143,0.03459361,18789.0,18788.0,1.84928515]
[1673573299675,0.03459361,18789.0,18788.0,1.84910218]
[1673573299930,0.03159361,18789.0,18788.0,1.71110218]
[1673573300179,0.03159361,18789.0,18788.0,0.8534178]
[1673573300433,0.03459361,18789.0,18788.0,0.9924178]
[1673573300674,0.03459361,18789.0,18788.0,0.8534178]
[1673573300675,0.03159361,18789.0,18788.0,0.8534178]
[1673573300917,0.03459361,18789.0,18788.0,0.9924178]
[1673573301163,0.03159361,18789.0,18788.0,1.09210897]
[1673573301427,0.03459361,18789.0,18788.0,1.23110897]
[1673573301677,0.03159361,18789.0,18788.0,0.8534178]
[1673573301961,0.03459361,18789.0,18788.0,0.9924178]
[1673573302195,0.03459361,18789.0,18788.0,1.23110897]
[1673573302683,0.03159361,18789.0,18788.0,1.71117525]
[1673573302927,0.03459361,18789.0,18788.0,1.85017525]
[1673573303168,0.03459361,18789.0,18788.0,1.71117525]
[1673573303417,0.03759361,18789.0,18788.0,1.85017525]
[1673573303671,0.03159361,18789.0,18788.0,1.71117525]
[1673573303918,0.03459361,18789.0,18788.0,2.10361584]
[1673573304179,0.03159361,18789.0,18788.0,1.96461584]
[1673573304438,0.03459361,18789.0,18788.0,2.10361584]
[1673573305205,0.03159361,18789.0,18788.0,1.96461584]
[1673573306470,0.03459361,18789.0,18788.0,2.10361584]
[1673573306721,0.03159361,18789.0,18788.0,1.80527369]
[1673573306972,0.03459361,18789.0,18788.0,1.94327369]
[1673573307479,0.03459361,18789.0,18788.0,1.08551624]
[1673573307987,0.03459361,18789.0,18788.0,1.32420741]
[1673573308488,0.03459361,18789.0,18788.0,1.08551624]
[1673573310771,0.03459361,18789.0,18788.0,1.74910212]
[1673573310993,0.03459361,18789.0,18788.0,1.08551624]
[1673573311987,0.03459361,18789.0,18788.0,0.99101624]
[1673573313504,0.03459361,18789.0,18788.0,1.36433565]
[1673573313987,0.03459361,18789.0,18788.0,0.83213337]
[1673573314228,0.03459361,18789.0,18788.0,1.46240911]
[1673573314995,0.03459361,18789.0,18788.0,0.83213337]
[1673573315729,0.03459361,18789.0,18788.0,0.99101624]
[1673573316470,0.03459361,18789.0,18788.0,1.22970741]
[1673573317203,0.03459361,18789.0,18788.0,1.32310741]
[1673573317470,0.03459361,18789.0,18788.0,1.94114571]
[1673573319196,0.03448074,18789.0,18788.0,1.94114571]
[1673573319473,0.03448074,18789.0,18788.0,1.78226284]
[1673573319730,0.03448074,18789.0,18788.0,2.10048786]
[1673573320267,0.03448074,18789.0,18788.0,1.78226284]
[1673573321483,0.03448074,18789.0,18788.0,1.86179669]
[1673573321722,0.03448074,18789.0,18788.0,2.25955715]
[1673573321965,1.01005413,18794.0,18789.0,0.12998009]
[1673573322231,0.45410606,18794.0,18790.0,0.68228494]
[1673573322485,0.14770606,18794.0,18791.0,0.54068494]
[1673573322735,0.69712161,18794.0,18792.0,0.33038]
[1673573322980,0.69712161,18794.0,18790.0,0.2416]
[1673573323236,0.00650606,18794.0,18791.0,0.1415]
[1673573323491,0.00950606,18794.0,18792.0,0.430554]
[1673573323737,0.01150606,18794.0,18793.0,0.87649118]
[1673573323985,0.00650606,18794.0,18793.0,0.87649118]
[1673573324232,0.00650606,18794.0,18793.0,0.54593718]
[1673573324485,0.00950606,18794.0,18793.0,0.54593718]
[1673573325222,0.00650606,18794.0,18793.0,0.54593718]
[1673573325463,0.17497108,18794.0,18793.0,0.54593718]
[1673573326980,0.31657108,18794.0,18793.0,0.54593718]
[1673573328450,0.55563762,18794.0,18793.0,0.54593718]
[1673573328698,0.31657108,18794.0,18793.0,0.54593718]
[1673573329462,0.15710606,18794.0,18793.0,0.87649118]
[1673573329710,0.14810606,18794.0,18793.0,0.87649118]
[1673573329964,0.15010606,18794.0,18793.0,0.93649118]
[1673573330187,0.14810606,18794.0,18793.0,0.87649118]
[1673573330419,0.15010606,18794.0,18793.0,0.93649118]
[1673573331623,0.30957108,18794.0,18793.0,0.60593718]
[1673573332342,0.30957108,18794.0,18793.0,0.93649118]
[1673573335514,0.15010606,18794.0,18793.0,0.93649118]
[1673573337557,0.15010606,18794.0,18793.0,1.03649118]
[1673573338038,0.15010606,18794.0,18793.0,0.93649118]
[1673573338601,0.00850606,18794.0,18793.0,1.03649118]
[1673573340824,0.00850606,18794.0,18793.0,1.03741637]
[1673573341096,0.00850606,18794.0,18793.0,0.84338413]
[1673573341351,0.00850606,18794.0,18793.0,2.44156242]
[1673573342089,0.00850606,18794.0,18793.0,2.1233374]
[1673573342336,0.00667979,18795.0,18794.0,0.17673548]
[1673573342585,0.00667979,18795.0,18794.0,2.58002337]
[1673573343085,0.00667979,18795.0,18794.0,2.28002337]
[1673573343337,0.00667979,18795.0,18794.0,2.13842337]
[1673573343582,0.00667979,18795.0,18794.0,2.43620553]
[1673573343811,0.00667979,18795.0,18794.0,2.54398257]
[1673573344051,0.00667979,18795.0,18794.0,2.68153974]
[1673573344794,0.00667979,18795.0,18794.0,1.7932873]
[1673573345068,0.00667979,18795.0,18794.0,0.94616126]
[1673573345333,0.00667979,18795.0,18794.0,1.19678337]
[1673573345811,0.00667979,18795.0,18794.0,1.09678337]
[1673573346795,0.00667979,18795.0,18794.0,0.95778337]
[1673573347046,0.00667979,18795.0,18794.0,0.89026337]
[1673573347294,0.00667979,18795.0,18794.0,0.00912822]
[1673573347295,0.14697979,18795.0,18794.0,0.00912822]
[1673573347544,0.24697979,18795.0,18794.0,0.00912822]
[1673573347788,0.24797979,18795.0,18794.0,0.14912822]
[1673573348032,0.14697979,18795.0,18794.0,0.00912822]
[1673573348280,0.14797979,18795.0,18794.0,0.12512822]
[1673573350736,0.14797979,18795.0,18794.0,0.12605336]
[1673573350983,0.00767979,18795.0,18794.0,0.83023699]
[1673573351265,0.00767979,18795.0,18794.0,1.42683099]
[1673573351748,0.00767979,18795.0,18794.0,1.16079099]
[1673573351994,0.00767979,18795.0,18794.0,1.26079099]
[1673573353016,0.53331769,18795.0,18794.0,1.26079099]
[1673573353293,0.53331769,18795.0,18794.0,0.11359668]
[1673573353588,0.67351769,18795.0,18794.0,0.11359668]
[1673573354583,0.14787979,18795.0,18794.0,0.11359668]
[1673573359246,0.14787979,18795.0,18794.0,0.21359668]
[1673573360535,0.14787979,18795.0,18794.0,0.11359668]
[1673573362000,0.14787979,18795.0,18794.0,0.58185735]
[1673573362730,0.14787979,18795.0,18794.0,0.91241135]
[1673573363234,0.00767979,18795.0,18794.0,0.54415068]
[1673573364799,0.00767979,18795.0,18794.0,1.14799768]
[1673573366495,0.00767979,18795.0,18794.0,1.04799768]
[1673573368003,0.00767979,18795.0,18794.0,1.14799768]
[1673573371202,0.00767979,18795.0,18794.0,1.14299768]
[1673573371478,0.03374409,18795.0,18794.0,1.14299768]
[1673573374421,0.02852994,18795.0,18794.0,1.14299768]
[1673573376345,0.02852994,18795.0,18794.0,1.30126946]
[1673573376875,0.02852994,18795.0,18794.0,1.14299768]
[1673573377600,0.02852994,18795.0,18794.0,1.30126946]
[1673573377849,0.02852994,18795.0,18794.0,1.14299768]
[1673573378592,0.02852994,18795.0,18794.0,1.04299768]
[1673573379588,0.02852994,18795.0,18794.0,1.14283183]
[1673573388964,0.02852994,18795.0,18794.0,1.04283183]
[1673573389726,0.02852994,18795.0,18794.0,0.71227783]
[1673573390218,0.02852994,18795.0,18794.0,1.04283183]
[1673573391983,0.02852994,18795.0,18794.0,1.14283183]
[1673573392226,0.02852994,18795.0,18794.0,1.30110361]
[1673573392971,0.02852994,18795.0,18794.0,1.04283183]
[1673573393216,0.02852994,18795.0,18794.0,0.71227783]
[1673573394286,0.02852994,18795.0,18794.0,0.10843083]
[1673573394517,0.18799496,18795.0,18794.0,0.10843083]
[1673573394775,0.76326509,18795.0,18794.0,0.10843083]
[1673573395544,0.60380007,18795.0,18794.0,0.10843083]
[1673573397524,0.02852994,18795.0,18794.0,0.10843083]
[1673573398087,0.02852994,18795.0,18794.0,0.75571539]
[1673573399066,0.02852994,18795.0,18794.0,0.65571539]
[1673573401794,0.88616209,18795.0,18794.0,0.10843083]
[1673573402045,1.28351509,18795.0,18794.0,0.10843083]
[1673573402295,1.68186865,18795.0,18794.0,0.10843083]
[1673573402809,1.44280211,18795.0,18794.0,0.10843083]
[1673573403062,1.68206948,18795.0,18794.0,0.10843083]